lending/lending_fUSD_20240603
["ID","MTS","AMOUNT","RATE_DAILY","PERIOD"]
[328466577,1717421448109,-500.0,0.00032874,4]
[328466578,1717421448120,-500.0,0.00032874,4]
[328466580,1717421448130,-699.41,0.00032874,4]
[328466582,1717421448139,-500.0,0.00032874,4]
[328466584,1717421448149,-1225.96,0.00032874,4]
[328466586,1717421448160,-500.0,0.00032875,4]
[328466588,1717421448169,-150.0,0.00032875,10]
[328466590,1717421448178,-150.0,0.00032875,10]
[328466593,1717421448188,-150.0,0.00032875,10]
[328466595,1717421448197,-150.0,0.00032875,10]
[328466597,1717421448206,-150.0,0.00032875,10]
[328466599,1717421448215,-150.0,0.00032875,10]
[328466601,1717421448224,-150.0,0.00032875,10]
[328466603,1717421448233,-150.0,0.00032875,10]
[328466605,1717421448242,-150.0,0.00032875,10]
[328466607,1717421448252,-150.0,0.00032875,10]
[328466609,1717421448261,-150.0,0.00032875,10]
[328466610,1717421448270,-156.9752472,0.00032875,10]
[328466612,1717421448280,-150.0,0.00032875,10]
[328466613,1717421448290,-150.0,0.00032875,10]
[328466614,1717421448299,-150.0,0.00032875,10]
[328466615,1717421448308,-150.0,0.00032875,10]
[328466616,1717421448318,-500.0,0.00032876,7]
[328466617,1717421448327,-3000.0,0.00032876,90]
[328466618,1717421448336,-3000.0,0.00032876,90]
[328466619,1717421448345,-3000.0,0.00032876,90]
[328466620,1717421448355,-3000.0,0.00032876,90]
[328466621,1717421448365,-3000.0,0.00032876,90]
[328466622,1717421448378,-790.97891448,0.00032876,90]
[328466623,1717421448387,-5004.39,0.00032881,2]
[328466624,1717421448396,-150.0,0.00032889,2]
[328466625,1717421448405,-150.0,0.00032889,2]
[328466626,1717421448414,-500.0,0.00032899,4]
[328466627,1717421448423,-500.0,0.00032899,4]
[328466628,1717421448432,-610.6385726,0.00032899,4]
[328466630,1717421448441,-500.0,0.00032899,4]
[328466632,1717421448450,-500.0,0.00032899,4]
[328466634,1717421448459,-500.0,0.00032899,4]
[328466636,1717421448468,-544.37076063,0.00032899,4]
[328466638,1717421448477,-500.0,0.00032899,4]
[328466640,1717421448486,-558.75,0.00032899,4]
[328466642,1717421448495,-500.0,0.00032899,4]
[328466644,1717421448505,-500.0,0.00032899,4]
[328466646,1717421448514,-158.46,0.00032899,4]
[328466648,1717421448523,-500.0,0.00032899,4]
[328466649,1717421448532,-500.0,0.00032899,4]
[328466652,1717421448542,-500.0,0.00032899,4]
[328466653,1717421448551,-500.0,0.00032899,4]
[328466655,1717421448560,-500.0,0.00032899,4]
[328466658,1717421448570,-561.90229251,0.00032899,4]
[328466659,1717421448580,-500.0,0.00032899,4]
[328466661,1717421448590,-500.0,0.00032899,4]
[328466663,1717421448599,-500.0,0.00032899,4]
[328466665,1717421448608,-500.0,0.00032899,4]
[328466667,1717421448616,-500.0,0.00032899,4]
[328466669,1717421448628,-500.0,0.00032899,4]
[328466671,1717421448637,-500.0,0.00032899,4]
[328466673,1717421448646,-515.24686707,0.00032899,4]
[328466675,1717421448656,-500.0,0.00032899,4]
[328466677,1717421448664,-500.0,0.00032899,7]
[328466679,1717421448674,-500.0,0.00032899,4]
[328466681,1717421448683,-430.36022653,0.00032899,4]
[328466683,1717421448692,-500.0,0.00032899,4]
[328466685,1717421448701,-500.0,0.00032899,4]
[328466687,1717421448709,-500.0,0.00032899,4]
[328466689,1717421448718,-500.0,0.00032899,4]
[328466691,1717421448727,-500.0,0.00032899,4]
[328466693,1717421448736,-500.0,0.00032899,4]
[328466695,1717421448745,-500.0,0.00032899,4]
[328466697,1717421448754,-500.0,0.00032899,4]
[328466699,1717421448763,-500.0,0.00032899,4]
[328466701,1717421448772,-509.17838059,0.00032899,4]
[328466703,1717421448782,-500.0,0.00032899,4]
[328466705,1717421448791,-500.0,0.00032899,4]
[328466707,1717421448800,-500.0,0.00032899,4]
[328466709,1717421448809,-500.0,0.00032899,4]
[328466711,1717421448818,-510.49641794,0.00032899,4]
[328466713,1717421448828,-500.0,0.00032899,4]
[328466715,1717421448837,-500.0,0.00032899,4]
[328466717,1717421448846,-500.0,0.00032899,4]
[328466719,1717421448854,-500.0,0.00032899,4]
[328466721,1717421448863,-500.0,0.00032899,4]
[328466723,1717421448876,-500.0,0.00032899,4]
[328466724,1717421448884,-500.0,0.00032899,4]
[328466725,1717421448893,-508.09942469,0.00032899,4]
[328466727,1717421448903,-500.0,0.00032899,4]
[328466728,1717421448912,-500.0,0.00032899,4]
[328466729,1717421448922,-500.0,0.00032899,4]
[328466730,1717421448931,-500.0,0.00032899,4]
[328466732,1717421448941,-500.0,0.00032899,4]
[328466734,1717421448951,-500.0,0.00032899,4]
[328466736,1717421448961,-500.0,0.00032899,4]
[328466737,1717421448971,-500.0,0.00032899,4]
[328466739,1717421448981,-521.9642554,0.00032899,4]
[328466740,1717421448991,-500.0,0.00032899,4]
[328466741,1717421449001,-500.0,0.00032899,4]
[328466742,1717421449012,-500.0,0.00032899,4]
[328466743,1717421449022,-531.95949952,0.00032899,4]
[328466744,1717421449032,-500.0,0.00032899,4]
[328466745,1717421449042,-500.0,0.00032899,4]
[328466746,1717421449052,-551.84299724,0.00032899,4]
[328466747,1717421449063,-525.06601144,0.00032899,4]
[328466748,1717421449074,-500.0,0.00032899,4]
[328466749,1717421449084,-500.0,0.00032899,4]
[328466750,1717421449093,-500.0,0.00032899,4]
[328466751,1717421449103,-500.0,0.00032899,4]
[328466752,1717421449113,-500.0,0.00032899,4]
[328466753,1717421449126,-500.0,0.00032899,4]
[328466754,1717421449135,-500.0,0.00032899,4]
[328466755,1717421449144,-500.0,0.00032899,4]
[328466756,1717421449154,-500.0,0.00032899,4]
[328466757,1717421449164,-500.0,0.00032899,4]
[328466758,1717421449173,-506.87443184,0.00032899,4]
[328466759,1717421449182,-522.10613801,0.00032899,4]
[328466760,1717421449192,-500.0,0.00032899,4]
[328466761,1717421449201,-500.0,0.00032899,4]
[328466762,1717421449212,-500.0,0.00032899,4]
[328466763,1717421449220,-500.0,0.00032899,4]
[328466764,1717421449229,-500.0,0.00032899,4]
[328466765,1717421449238,-500.0,0.00032899,4]
[328466766,1717421449248,-500.0,0.00032899,4]
[328466767,1717421449257,-500.0,0.00032899,4]
[328466768,1717421449266,-500.0,0.00032899,4]
[328466769,1717421449275,-500.0,0.00032899,4]
[328466770,1717421449284,-305.64695598,0.00032899,4]
[328466771,1717421449293,-500.0,0.00032899,4]
[328466772,1717421449303,-500.0,0.00032899,4]
[328466773,1717421449313,-500.0,0.00032899,4]
[328466774,1717421449322,-500.0,0.00032899,4]
[328466775,1717421449331,-500.0,0.00032899,4]
[328466776,1717421449340,-500.0,0.00032899,4]
[328466777,1717421449349,-500.0,0.00032899,4]
[328466778,1717421449358,-500.0,0.00032899,4]
[328466779,1717421449368,-500.0,0.00032899,4]
[328466780,1717421449379,-262.67047836,0.00032899,4]
[328466781,1717421449388,-500.0,0.00032899,4]
[328466782,1717421449397,-500.0,0.00032899,4]
[328466783,1717421449406,-500.0,0.00032899,4]
[328466784,1717421449415,-500.0,0.00032899,4]
[328466785,1717421449423,-500.0,0.00032899,4]
[328466786,1717421449432,-500.0,0.00032899,4]
[328466787,1717421449441,-500.0,0.00032899,4]
[328466788,1717421449450,-500.0,0.00032899,4]
[328466789,1717421449459,-500.0,0.00032899,4]
[328466790,1717421449469,-500.0,0.00032899,4]
[328466791,1717421449478,-500.0,0.00032899,4]
[328466792,1717421449486,-500.0,0.00032899,4]
[328466793,1717421449495,-500.0,0.00032899,4]
[328466794,1717421449504,-500.0,0.00032899,4]
[328466795,1717421449513,-500.0,0.00032899,4]
[328466796,1717421449523,-500.0,0.00032899,4]
[328466797,1717421449532,-500.0,0.00032899,4]
[328466798,1717421449541,-500.0,0.00032899,4]
[328466799,1717421449550,-523.18384278,0.00032899,4]
[328466800,1717421449559,-500.0,0.00032899,4]
[328466801,1717421449568,-500.0,0.00032899,4]
[328466802,1717421449688,-500.0,0.00032899,4]
[328466803,1717421449698,-249.82184412,0.00032899,4]
[328466804,1717421449707,-500.0,0.00032899,4]
[328466805,1717421449716,-500.0,0.00032899,4]
[328466806,1717421449724,-500.0,0.00032899,4]
[328466807,1717421449734,-637.25,0.00032899,4]
[328466808,1717421449743,-500.0,0.00032899,4]
[328466809,1717421449752,-506.86090535,0.00032899,4]
[328466810,1717421449762,-500.0,0.00032899,4]
[328466811,1717421449771,-500.0,0.00032899,4]
[328466812,1717421449781,-500.0,0.00032899,4]
[328466813,1717421449790,-500.0,0.00032899,4]
[328466814,1717421449799,-500.0,0.00032899,4]
[328466815,1717421449808,-500.0,0.00032899,4]
[328466816,1717421449817,-500.0,0.00032899,4]
[328466817,1717421449826,-533.67844625,0.00032899,4]
[328466818,1717421449835,-327.61928219,0.00032899,4]
[328466819,1717421449845,-500.0,0.00032899,4]
[328466820,1717421449854,-500.0,0.00032899,4]
[328466821,1717421449864,-517.69226353,0.00032899,4]
[328466822,1717421449877,-500.0,0.00032899,4]
[328466823,1717421449886,-500.0,0.00032899,4]
[328466824,1717421449895,-500.0,0.00032899,4]
[328466825,1717421449905,-513.16997157,0.00032899,4]
[328466826,1717421449914,-500.0,0.00032899,4]
[328466827,1717421449923,-500.0,0.00032899,4]
[328466828,1717421449933,-509.58804363,0.00032899,4]
[328466829,1717421449942,-500.0,0.00032899,4]
[328466830,1717421449951,-505.98895991,0.00032899,4]
[328466831,1717421449961,-500.0,0.00032899,4]
[328466832,1717421449970,-513.53325222,0.00032899,4]
[328466833,1717421449980,-500.0,0.00032899,4]
[328466834,1717421449990,-500.0,0.00032899,4]
[328466835,1717421449999,-500.0,0.00032899,4]
[328466836,1717421450008,-564.61731971,0.00032899,4]
[328466837,1717421450018,-500.0,0.00032899,4]
[328466838,1717421450027,-500.0,0.00032899,4]
[328466839,1717421450037,-500.0,0.00032899,4]
[328466840,1717421450046,-500.0,0.00032899,4]
[328466841,1717421450056,-507.34242009,0.00032899,4]
[328466842,1717421450066,-500.0,0.00032899,4]
[328466843,1717421450076,-500.0,0.00032899,4]
[328466844,1717421450090,-500.0,0.00032899,4]
[328466845,1717421450099,-500.0,0.00032899,4]
[328466846,1717421450110,-500.0,0.00032899,4]
[328466847,1717421450119,-505.57148261,0.00032899,4]
[328466848,1717421450130,-500.0,0.00032899,4]
[328466849,1717421450139,-500.0,0.00032899,4]
[328466850,1717421450148,-500.0,0.00032899,4]
[328466851,1717421450159,-500.0,0.00032899,4]
[328466852,1717421450168,-511.43762641,0.00032899,4]
[328466853,1717421450178,-500.0,0.00032899,4]
[328466854,1717421450187,-523.0380049,0.00032899,4]
[328466855,1717421450196,-500.0,0.00032899,4]
[328466856,1717421450206,-515.9967259,0.00032899,4]
[328466857,1717421450215,-514.6472214,0.00032899,4]
[328466858,1717421450224,-510.65207,0.00032899,4]
[328466859,1717421450233,-519.21668769,0.00032899,4]
[328466860,1717421450243,-500.0,0.00032899,4]
[328466861,1717421450253,-533.63201343,0.00032899,4]
[328466862,1717421450262,-503.0464294,0.00032899,4]
[328466863,1717421450272,-500.0,0.00032899,4]
[328466864,1717421450281,-505.5485087,0.00032899,4]
[328466865,1717421450291,-500.0,0.00032899,4]
[328466866,1717421450301,-500.0,0.00032899,4]
[328466867,1717421450310,-546.10588819,0.00032899,4]
[328466868,1717421450319,-500.0,0.00032899,4]
[328466869,1717421450329,-500.0,0.00032899,4]
[328466870,1717421450338,-500.0,0.00032899,4]
[328466871,1717421450347,-500.0,0.00032899,4]
[328466872,1717421450356,-500.0,0.00032899,4]
[328466873,1717421450365,-321.56538376,0.00032899,4]
[328466874,1717421450378,-500.0,0.00032899,4]
[328466875,1717421450387,-500.0,0.00032899,4]
[328466876,1717421450396,-500.0,0.00032899,4]
[328466877,1717421450406,-500.0,0.00032899,4]
[328466878,1717421450415,-589.0448513,0.00032899,4]
[328466879,1717421450423,-510.56332832,0.00032899,4]
[328466880,1717421450432,-500.0,0.00032899,4]
[328466881,1717421450442,-509.28604318,0.00032899,4]
[328466882,1717421450451,-500.0,0.00032899,4]
[328466883,1717421450461,-500.0,0.00032899,4]
[328466884,1717421450471,-517.65054654,0.00032899,4]
[328466885,1717421450480,-500.0,0.00032899,4]
[328466886,1717421450490,-500.0,0.00032899,4]
[328466887,1717421450499,-500.0,0.00032899,4]
[328466888,1717421450509,-500.0,0.00032899,4]
[328466889,1717421450518,-500.0,0.00032899,4]
[328466890,1717421450527,-500.0,0.00032899,4]
[328466891,1717421450537,-187.93026553,0.00032899,4]
[328466892,1717421450546,-500.0,0.00032899,4]
[328466893,1717421450555,-500.0,0.00032899,4]
[328466894,1717421450565,-513.34,0.00032899,4]
[328466895,1717421450574,-500.0,0.00032899,4]
[328466896,1717421450584,-503.70501943,0.00032899,4]
[328466897,1717421450593,-500.0,0.00032899,4]
[328466898,1717421450602,-517.19861777,0.00032899,4]
[328466899,1717421450612,-500.0,0.00032899,4]
[328466900,1717421450621,-500.0,0.00032899,4]
[328466901,1717421450631,-500.0,0.00032899,4]
[328466902,1717421450640,-500.0,0.00032899,4]
[328466903,1717421450650,-620.73437979,0.00032899,4]
[328466904,1717421450659,-507.19325019,0.00032899,4]
[328466905,1717421450668,-508.60914122,0.00032899,4]
[328466906,1717421450678,-500.0,0.00032899,4]
[328466907,1717421450687,-500.0,0.00032899,4]
[328466908,1717421450696,-508.53321537,0.00032899,4]
[328466909,1717421450705,-500.0,0.00032899,4]
[328466910,1717421450714,-521.33608045,0.00032899,4]
[328466911,1717421450723,-620.0,0.00032899,4]
[328466912,1717421450733,-500.0,0.00032899,4]
[328466913,1717421450743,-500.0,0.00032899,4]
[328466914,1717421450752,-500.0,0.00032899,4]
[328466915,1717421450762,-500.0,0.00032899,4]
[328466916,1717421450772,-500.0,0.00032899,4]
[328466917,1717421450782,-500.0,0.00032899,4]
[328466918,1717421450792,-500.0,0.00032899,4]
[328466919,1717421450801,-500.0,0.00032899,4]
[328466920,1717421450811,-500.0,0.00032899,4]
[328466921,1717421450820,-382.52469176,0.00032899,4]
[328466922,1717421450829,-500.0,0.00032899,4]
[328466923,1717421450839,-547.51901265,0.00032899,4]
[328466924,1717421450848,-543.72357009,0.00032899,4]
[328466925,1717421450857,-500.0,0.00032899,4]
[328466926,1717421450867,-500.0,0.00032899,4]
[328466927,1717421450877,-500.0,0.00032899,4]
[328466928,1717421450887,-500.0,0.00032899,4]
[328466929,1717421450896,-500.0,0.00032899,4]
[328466930,1717421450906,-500.0,0.00032899,4]
[328466931,1717421450915,-500.0,0.00032899,4]
[328466932,1717421450924,-500.0,0.00032899,4]
[328466933,1717421450934,-500.0,0.00032899,4]
[328466934,1717421450943,-500.0,0.00032899,4]
[328466935,1717421450953,-500.0,0.00032899,4]
[328466936,1717421450962,-406.42140506,0.00032899,4]
[328466937,1717421450971,-500.0,0.00032899,4]
[328466938,1717421450981,-500.0,0.00032899,4]
[328466939,1717421450990,-500.0,0.00032899,4]
[328466940,1717421450999,-500.0,0.00032899,4]
[328466941,1717421451009,-500.0,0.00032899,4]
[328466942,1717421451018,-500.0,0.00032899,4]
[328466943,1717421451030,-500.0,0.00032899,4]
[328466944,1717421451039,-500.0,0.00032899,4]
[328466945,1717421451048,-500.0,0.00032899,4]
[328466946,1717421451058,-506.55200895,0.00032899,4]
[328466947,1717421451075,-500.0,0.00032899,4]
[328466948,1717421451084,-490.55261825,0.000329,2]
[328466949,1717421451094,-178.0,0.000329,2]
[328466950,1717421451103,-5663.0406678,0.000329,2]
[328466951,1717421451115,-150.0,0.000329,2]
[328466952,1717421451125,-2000.0,0.000329,2]
[328466953,1717421451135,-200.43073784,0.000329,2]
[328466954,1717421451143,-150.0,0.00032913,2]
[328466955,1717421451153,-500.0,0.00032917,4]
[328466956,1717421451162,-150.0,0.00032922,2]
[328466957,1717421451171,-150.0,0.00032938,2]
[328466958,1717421451180,-150.0,0.00032945,2]
[328466959,1717421451189,-150.0,0.00032957,2]
[328466960,1717421451198,-150.0,0.00032963,2]
[328466961,1717421451208,-168.83784183,0.00032966,3]
[328466962,1717421451217,-150.0,0.00032976,2]
[328466963,1717421451226,-150.0,0.00032998,2]
[328466964,1717421451235,-500.0,0.00032999,4]
[328466965,1717421451244,-150.0,0.00032999,30]
[328466966,1717421451255,-150.0,0.00032999,30]
[328466967,1717421451264,-150.0,0.00032999,30]
[328466968,1717421451273,-150.0,0.00032999,30]
[328466969,1717421451282,-150.0,0.00032999,30]
[328466970,1717421451291,-150.0,0.00032999,30]
[328466971,1717421451300,-150.0,0.00032999,30]
[328466972,1717421451310,-150.0,0.00032999,30]
[328466973,1717421451319,-150.0,0.00032999,30]
[328466974,1717421451328,-150.0,0.00032999,30]
[328466975,1717421451337,-150.0,0.00032999,30]
[328466976,1717421451346,-150.0,0.00032999,30]
[328466977,1717421451355,-150.0,0.00032999,30]
[328466978,1717421451363,-150.0,0.00032999,30]
[328466979,1717421451374,-150.0,0.00032999,30]
[328466980,1717421451383,-182198.19918376,0.00033,13]
[328466981,1717421451392,-307.05044098,0.00033,5]
[328466982,1717421451402,-4000.0,0.00033,2]
[328466983,1717421451411,-4000.0,0.00033,2]
[328466984,1717421451420,-750.0,0.00033,120]
[328466985,1717421451429,-605.0,0.00033,22]
[328466986,1717421451438,-4000.0,0.00033,2]
[328466987,1717421451447,-4000.0,0.00033,2]
[328466988,1717421451456,-4000.0,0.00033,2]
[328466989,1717421451465,-4000.0,0.00033,2]
[328466990,1717421451474,-4000.0,0.00033,2]
[328466991,1717421451484,-4000.0,0.00033,2]
[328466992,1717421451493,-155.0,0.00033,4]
[328466993,1717421451503,-900.0,0.00033,34]
[328466994,1717421451512,-416.738211,0.00033,2]
[328466995,1717421451523,-300.386185,0.00033,3]
[328466996,1717421451533,-1006.32,0.00033,2]
[328466997,1717421451544,-500.0,0.00033006,3]
[328466998,1717421451555,-500.0,0.00033015,3]
[328466999,1717421451564,-500.0,0.00033024,3]
[328467000,1717421451574,-150.0,0.00033029,2]
[328467001,1717421451583,-500.0,0.00033032,3]
[328467002,1717421451594,-500.0,0.00033033,10]
[328467003,1717421451605,-200.0,0.00033033,10]
[328467004,1717421451615,-150.0,0.00033037,2]
[328467005,1717421451625,-150.0,0.0003304,2]
[328467006,1717421451634,-500.0,0.00033041,3]
[328467007,1717421451644,-500.0,0.0003305,3]
[328467008,1717421451653,-150.0,0.00033051,2]
[328467009,1717421451662,-150.0,0.00033053,2]
[328467010,1717421451671,-150.0,0.00033055,2]
[328467011,1717421451680,-500.0,0.00033059,3]
[328467012,1717421451689,-150.0,0.0003306,2]
[328467013,1717421451699,-150.0,0.00033061,2]
[328467014,1717421451710,-150.0,0.00033067,2]
[328467015,1717421451719,-150.0,0.00033067,2]
[328467016,1717421451730,-150.0,0.00033075,2]
[328467017,1717421451739,-160.0,0.0003308,20]
[328467018,1717421451749,-150.0,0.00033086,2]
[328467019,1717421451759,-150.0,0.00033089,2]
[328467020,1717421451768,-150.0,0.0003309,2]
[328467021,1717421451777,-150.0,0.00033095,2]
[328467022,1717421451787,-150.0,0.00033097,2]
[328467023,1717421451796,-1006.32,0.000331,2]
[328467024,1717421451806,-150.0,0.00033101,2]
[328467025,1717421451816,-150.0,0.00033101,2]
[328467026,1717421451826,-150.0,0.00033108,2]
[328467027,1717421451837,-150.0,0.00033113,2]
[328467028,1717421451846,-150.0,0.00033115,2]
[328467029,1717421451857,-150.0,0.00033117,2]
[328467030,1717421451867,-150.0,0.0003312,2]
[328467031,1717421451877,-150.0,0.00033124,2]
[328467032,1717421451886,-150.0,0.00033128,2]
[328467033,1717421451896,-150.0,0.00033132,2]
[328467034,1717421451906,-150.0,0.00033134,2]
[328467035,1717421451916,-150.0,0.00033137,2]
[328467036,1717421451925,-150.0,0.00033137,2]
[328467037,1717421451934,-150.0,0.00033137,2]
[328467038,1717421451944,-150.0,0.00033142,2]
[328467039,1717421451953,-150.0,0.00033143,2]
[328467040,1717421451963,-150.0,0.00033143,2]
[328467041,1717421451972,-500.0,0.00033147,4]
[328467042,1717421451981,-500.0,0.00033147,4]
[328467043,1717421451992,-316.42,0.00033147,4]
[328467044,1717421452001,-826.53,0.00033147,4]
[328467045,1717421452010,-954.32,0.00033147,4]
[328467046,1717421452020,-500.0,0.00033147,4]
[328467047,1717421452029,-500.0,0.00033147,4]
[328467048,1717421452038,-500.0,0.00033147,4]
[328467049,1717421452047,-500.0,0.00033147,4]
[328467050,1717421452056,-917.3,0.00033147,4]
[328467051,1717421452066,-500.0,0.00033147,4]
[328467052,1717421452077,-500.0,0.00033147,4]
[328467053,1717421452088,-500.0,0.00033147,4]
[328467054,1717421452097,-500.0,0.00033147,4]
[328467055,1717421452106,-500.0,0.00033147,4]
[328467056,1717421452115,-589.6,0.00033148,4]
[328467057,1717421452125,-500.0,0.00033148,4]
[328467058,1717421452134,-500.0,0.00033148,4]
[328467059,1717421452143,-1012.16,0.00033148,4]
[328467060,1717421452154,-1354.73,0.00033148,4]
[328467061,1717421452163,-500.0,0.00033148,4]
[328467062,1717421452173,-1441.82,0.00033148,4]
[328467063,1717421452182,-500.0,0.00033148,4]
[328467064,1717421452191,-500.0,0.00033148,4]
[328467065,1717421452200,-958.52,0.00033148,4]
[328467066,1717421452209,-691.48,0.00033148,4]
[328467067,1717421452218,-779.08,0.00033148,4]
[328467068,1717421452332,-500.0,0.00033148,4]
[328467069,1717421452342,-4632.86,0.00033148,4]
[328467070,1717421452351,-4039.25,0.00033148,4]
[328467071,1717421452361,-500.0,0.00033148,4]
[328467072,1717421452370,-500.0,0.00033148,4]
[328467073,1717421452380,-699.41,0.00033148,4]
[328467074,1717421452389,-500.0,0.00033148,4]
[328467075,1717421452398,-1225.96,0.00033148,4]
[328467076,1717421452407,-469.37669733,0.00033149,4]
[328467077,1717421452417,-150.0,0.00033149,2]
[328467078,1717421452427,-500.0,0.0003315,8]
[328467079,1717421452436,-150.0,0.0003317,2]
[328467080,1717421452446,-150.0,0.00033172,2]
[328467081,1717421452455,-500.0,0.00033173,4]
[328467082,1717421452465,-475.7605693,0.00033173,4]
[328467083,1717421452474,-500.0,0.00033173,4]
[328467084,1717421452485,-500.0,0.00033173,4]
[328467085,1717421452496,-500.0,0.00033173,4]
[328467086,1717421452505,-500.0,0.00033173,4]
[328467087,1717421452514,-500.0,0.00033173,4]
[328467088,1717421452523,-500.0,0.00033173,4]
[328467089,1717421452532,-500.0,0.00033173,4]
[328467090,1717421452541,-500.0,0.00033173,4]
[328467091,1717421452550,-500.0,0.00033173,4]
[328467092,1717421452558,-500.0,0.00033173,4]
[328467093,1717421452567,-500.0,0.00033173,4]
[328467094,1717421452576,-500.0,0.00033173,4]
[328467095,1717421452585,-547.27235819,0.00033173,4]
[328467096,1717421452594,-500.0,0.00033173,7]
[328467097,1717421452604,-500.0,0.00033173,4]
[328467098,1717421452613,-500.0,0.00033173,4]
[328467099,1717421452623,-500.0,0.00033173,4]
[328467100,1717421452632,-366.54,0.00033173,4]
[328467101,1717421452641,-510.29218357,0.00033173,4]
[328467102,1717421452651,-500.0,0.00033173,4]
[328467103,1717421452660,-514.39813233,0.00033173,4]
[328467104,1717421452669,-500.0,0.00033173,4]
[328467105,1717421452678,-500.0,0.00033173,4]
[328467106,1717421452687,-500.0,0.00033173,4]
[328467107,1717421452696,-500.0,0.00033173,4]
[328467108,1717421452705,-500.0,0.00033173,4]
[328467109,1717421452714,-500.0,0.00033173,4]
[328467110,1717421452723,-500.0,0.00033173,4]
[328467111,1717421452732,-500.0,0.00033173,4]
[328467112,1717421452744,-500.0,0.00033173,4]
[328467113,1717421452754,-500.0,0.00033173,4]
[328467114,1717421452763,-500.0,0.00033173,4]
[328467115,1717421452772,-500.0,0.00033173,4]
[328467116,1717421452782,-500.0,0.00033173,4]
[328467117,1717421452791,-500.0,0.00033173,4]
[328467118,1717421452800,-500.0,0.00033173,4]
[328467119,1717421452809,-500.0,0.00033173,4]
[328467120,1717421452818,-500.0,0.00033173,4]
[328467121,1717421452827,-500.0,0.00033173,4]
[328467122,1717421452837,-500.0,0.00033173,4]
[328467123,1717421452846,-500.0,0.00033173,4]
[328467124,1717421452856,-524.8992648,0.00033173,4]
[328467125,1717421452865,-500.0,0.00033173,4]
[328467126,1717421452876,-500.0,0.00033173,4]
[328467127,1717421452885,-513.41116594,0.00033173,4]
[328467128,1717421452894,-500.0,0.00033173,4]
[328467129,1717421452903,-500.0,0.00033173,4]
[328467130,1717421452912,-500.0,0.00033173,4]
[328467131,1717421452921,-517.21988403,0.00033173,4]
[328467132,1717421452930,-500.0,0.00033173,4]
[328467133,1717421452940,-343.50048415,0.00033173,4]
[328467134,1717421452950,-510.75066197,0.00033173,4]
[328467135,1717421452959,-500.0,0.00033173,4]
[328467136,1717421452968,-511.70188984,0.00033173,4]
[328467137,1717421452977,-500.0,0.00033173,4]
[328467138,1717421452986,-519.29562617,0.00033173,4]
[328467139,1717421452995,-522.85285591,0.00033173,4]
[328467140,1717421453004,-500.0,0.00033173,4]
[328467141,1717421453014,-500.0,0.00033173,4]
[328467142,1717421453023,-500.0,0.00033173,4]
[328467143,1717421453033,-500.0,0.00033173,4]
[328467144,1717421453041,-500.0,0.00033173,4]
[328467145,1717421453051,-500.0,0.00033173,4]